fUSD/lending_fUSD_20240119
["ID","MTS","AMOUNT","RATE_DAILY","PERIOD"]
[312150524,1705669879505,-733.89,0.00023013,2]
[312150525,1705669879517,-769.83,0.00023013,2]
[312150526,1705669879528,-926.17,0.00023013,2]
[312150527,1705669879537,-500.0,0.00023013,2]
[312150528,1705669879547,-680.95,0.00023013,2]
[312150529,1705669879557,-500.0,0.00023013,2]
[312150530,1705669879567,-622.1,0.00023013,2]
[312150531,1705669879577,-500.0,0.00023013,2]
[312150532,1705669879587,-500.0,0.00023013,2]
[312150533,1705669879597,-500.0,0.00023013,2]
[312150534,1705669879608,-500.0,0.00023013,2]
[312150535,1705669879618,-500.0,0.00023013,2]
[312150536,1705669879628,-852.32,0.00023013,2]
[312150537,1705669879638,-541.18,0.00023013,2]
[312150538,1705669879648,-774.53,0.00023013,2]
[312150539,1705669879658,-623.89,0.00023013,2]
[312150540,1705669879668,-500.0,0.00023013,2]
[312150541,1705669879678,-910.14,0.00023013,2]
[312150542,1705669879688,-500.0,0.00023013,2]
[312150543,1705669879698,-500.0,0.00023013,2]
[312150544,1705669879709,-918.52,0.00023013,2]
[312150545,1705669879719,-1225.46,0.00023013,2]
[312150546,1705669879729,-1110.62,0.00023013,2]
[312150547,1705669879739,-500.0,0.00023013,2]
[312150548,1705669879749,-500.0,0.00023013,2]
[312150549,1705669879761,-500.0,0.00023013,2]
[312150550,1705669879771,-722.75,0.00023013,2]
[312150551,1705669879781,-681.27,0.00023013,2]
[312150552,1705669879791,-720.2,0.00023013,2]
[312150553,1705669879805,-1281.21,0.00023013,2]
[312150554,1705669879814,-500.0,0.00023013,2]
[312150555,1705669879824,-960.8,0.00023013,2]
[312150556,1705669879834,-500.0,0.00023013,2]
[312150557,1705669879844,-1200.27,0.00023013,2]
[312150558,1705669879854,-500.0,0.00023013,2]
[312150559,1705669879865,-996.2,0.00023013,2]
[312150560,1705669879875,-500.0,0.00023013,2]
[312150561,1705669879885,-733.48,0.00023013,2]
[312150562,1705669879895,-717.41,0.00023013,2]
[312150563,1705669879904,-500.0,0.00023013,2]
[312150564,1705669879914,-500.0,0.00023013,2]
[312150565,1705669879924,-567.28,0.00023013,2]
[312150566,1705669880034,-500.0,0.00023013,2]
[312150567,1705669880044,-544.36,0.00023013,2]
[312150568,1705669880054,-500.0,0.00023013,2]
[312150569,1705669880064,-500.0,0.00023013,2]
[312150570,1705669880074,-655.23896734,0.00023013,2]
[312150571,1705669880083,-500.0,0.00023013,2]
[312150572,1705669880093,-500.0,0.00023013,2]
[312150573,1705669880102,-508.81,0.00023013,2]
[312150574,1705669880113,-500.0,0.00023013,2]
[312150575,1705669880123,-500.0,0.00023013,2]
[312150576,1705669880133,-225.99218059,0.00023013,2]
[312150577,1705669880143,-500.0,0.00023013,2]
[312150578,1705669880153,-500.0,0.00023013,2]
[312150579,1705669880163,-685.86,0.00023013,2]
[312150580,1705669880173,-500.0,0.00023013,2]
[312150581,1705669880183,-864.15,0.00023013,2]
[312150582,1705669880193,-500.0,0.00023013,2]
[312150583,1705669880203,-502.08,0.00023013,2]
[312150584,1705669880212,-504.94,0.00023013,2]
[312150585,1705669880223,-854.99,0.00023013,2]
[312150586,1705669880232,-606.04,0.00023013,2]
[312150587,1705669880242,-851.01,0.00023013,2]
[312150588,1705669880252,-571.27,0.00023013,2]
[312150589,1705669880262,-500.0,0.00023013,2]
[312150590,1705669880271,-1336.55,0.00023013,2]
[312150591,1705669880281,-500.0,0.00023013,2]
[312150592,1705669880292,-500.0,0.00023013,2]
[312150593,1705669880302,-500.0,0.00023013,2]
[312150594,1705669880312,-953.61,0.00023013,2]
[312150595,1705669880321,-536.63,0.00023013,2]
[312150596,1705669880331,-151.28863477,0.00023013,2]
[312150597,1705669880341,-770.79,0.00023013,2]
[312150598,1705669880352,-500.0,0.00023013,2]
[312150599,1705669880363,-662.32,0.00023013,2]
[312150600,1705669880373,-811.51,0.00023013,2]
[312150601,1705669880383,-500.0,0.00023013,2]
[312150602,1705669880393,-500.0,0.00023013,2]
[312150603,1705669880403,-845.2,0.00023013,2]
[312150604,1705669880413,-530.89279921,0.00023013,2]
[312150605,1705669880423,-788.16,0.00023013,2]
[312150606,1705669880433,-500.0,0.00023013,2]
[312150607,1705669880444,-653.02,0.00023013,2]
[312150608,1705669880454,-500.0,0.00023013,2]
[312150609,1705669880464,-1258.44,0.00023013,2]
[312150610,1705669880474,-500.0,0.00023013,2]
[312150611,1705669880485,-500.0,0.00023013,2]
[312150612,1705669880495,-500.0,0.00023013,2]
[312150613,1705669880506,-500.0,0.00023013,2]
[312150614,1705669880517,-500.0,0.00023013,2]
[312150615,1705669880527,-500.0,0.00023013,2]
[312150616,1705669880538,-640.03,0.00023013,2]
[312150617,1705669880548,-769.35,0.00023013,2]
[312150618,1705669880558,-570.39,0.00023013,2]
[312150619,1705669880567,-723.58,0.00023013,2]
[312150620,1705669880577,-1088.57,0.00023013,2]
[312150621,1705669880587,-1400.81,0.00023013,2]
[312150622,1705669880597,-500.0,0.00023013,2]
[312150623,1705669880608,-613.93,0.00023013,2]
[312150624,1705669880618,-500.0,0.00023013,2]
[312150625,1705669880628,-500.0,0.00023013,2]
[312150626,1705669880638,-749.16,0.00023013,2]
[312150627,1705669880648,-739.73,0.00023013,2]
[312150628,1705669880658,-500.0,0.00023013,2]
[312150629,1705669880668,-500.0,0.00023013,2]
[312150630,1705669880678,-1591.86,0.00023013,2]
[312150631,1705669880688,-500.0,0.00023013,2]
[312150632,1705669880698,-520.91,0.00023013,2]
[312150633,1705669880708,-500.0,0.00023013,2]
[312150634,1705669880718,-500.0,0.00023013,2]
[312150635,1705669880728,-556.82,0.00023013,2]
[312150636,1705669880738,-500.0,0.00023013,2]
[312150637,1705669880748,-500.0,0.00023013,2]
[312150638,1705669880759,-657.02,0.00023013,2]
[312150639,1705669880769,-903.89,0.00023013,2]
[312150640,1705669880779,-1000.86,0.00023013,2]
[312150641,1705669880794,-500.0,0.00023013,2]
[312150642,1705669880804,-619.43,0.00023013,2]
[312150643,1705669880814,-759.91,0.00023013,2]
[312150644,1705669880826,-549.59,0.00023013,2]
[312150645,1705669880835,-500.0,0.00023013,2]
[312150646,1705669880845,-754.71,0.00023013,2]
[312150647,1705669880855,-500.0,0.00023013,2]
[312150648,1705669880866,-526.70364263,0.00023013,2]
[312150649,1705669880877,-500.0,0.00023013,2]
[312150650,1705669880887,-500.0,0.00023013,7]
[312150651,1705669880896,-1295.82,0.00023013,2]
[312150652,1705669880906,-500.0,0.00023013,2]
[312150653,1705669880917,-536.32,0.00023013,2]
[312150654,1705669880927,-697.99,0.00023013,2]
[312150655,1705669880936,-637.25,0.00023013,2]
[312150656,1705669880946,-585.76,0.00023013,2]
[312150657,1705669880956,-971.36,0.00023013,2]
[312150658,1705669880967,-500.0,0.00023013,2]
[312150659,1705669880977,-508.57,0.00023013,2]
[312150660,1705669880987,-500.0,0.00023013,2]
[312150661,1705669880997,-516.49,0.00023013,2]
[312150662,1705669881007,-184.5,0.00023013,2]
[312150663,1705669881017,-500.0,0.00023013,2]
[312150664,1705669881027,-674.4,0.00023013,2]
[312150665,1705669881037,-1174.25,0.00023013,2]
[312150666,1705669881047,-500.0,0.00023013,2]
[312150667,1705669881057,-500.0,0.00023013,2]
[312150668,1705669881066,-2577.21,0.00023013,2]
[312150669,1705669881076,-551.89,0.00023013,2]
[312150670,1705669881085,-1004.34,0.00023013,2]
[312150671,1705669881095,-500.0,0.00023013,2]
[312150672,1705669881104,-500.0,0.00023013,2]
[312150673,1705669881114,-500.0,0.00023013,2]
[312150674,1705669881123,-595.37,0.00023013,2]
[312150675,1705669881133,-500.0,0.00023013,2]
[312150676,1705669881143,-975.94,0.00023013,2]
[312150677,1705669881153,-1384.81,0.00023013,2]
[312150678,1705669881163,-500.0,0.00023013,2]
[312150679,1705669881173,-300.0,0.00023013,2]
[312150680,1705669881183,-2155.6,0.00023013,2]
[312150681,1705669881193,-500.0,0.00023013,2]
[312150682,1705669881203,-607.66,0.00023013,2]
[312150683,1705669881213,-500.0,0.00023013,2]
[312150684,1705669881223,-993.96,0.00023013,2]
[312150685,1705669881233,-500.0,0.00023013,2]
[312150686,1705669881243,-500.0,0.00023013,2]
[312150687,1705669881253,-500.0,0.00023013,2]
[312150688,1705669881263,-500.0,0.00023013,2]
[312150689,1705669881273,-1491.73,0.00023013,2]
[312150690,1705669881283,-500.0,0.00023013,2]
[312150691,1705669881293,-500.0,0.00023013,2]
[312150692,1705669881305,-500.0,0.00023013,2]
[312150693,1705669881315,-330.00222273,0.00023013,2]
[312150694,1705669881325,-2597.14,0.00023013,2]
[312150695,1705669881335,-884.11,0.00023013,2]
[312150696,1705669881345,-500.0,0.00023013,2]
[312150697,1705669881355,-702.17,0.00023013,2]
[312150698,1705669881366,-500.0,0.00023013,2]
[312150699,1705669881378,-500.0,0.00023013,2]
[312150700,1705669881388,-1278.53,0.00023013,2]
[312150701,1705669881399,-509.99,0.00023013,2]
[312150702,1705669881408,-1304.44,0.00023013,2]
[312150703,1705669881419,-644.49,0.00023013,2]
[312150704,1705669881429,-500.0,0.00023013,2]
[312150705,1705669881440,-4136.35,0.00023013,2]
[312150706,1705669881450,-756.21,0.00023013,2]
[312150707,1705669881460,-500.0,0.00023013,2]
[312150708,1705669881470,-1691.78,0.00023013,2]
[312150709,1705669881479,-957.56,0.00023013,2]
[312150710,1705669881489,-500.0,0.00023013,2]
[312150711,1705669881499,-500.0,0.00023013,2]
[312150712,1705669881509,-500.0,0.00023013,2]
[312150713,1705669881519,-500.0,0.00023013,2]
[312150714,1705669881529,-561.8,0.00023013,2]
[312150715,1705669881539,-1210.49,0.00023013,2]
[312150716,1705669881548,-557.2,0.00023013,2]
[312150717,1705669881559,-500.0,0.00023013,2]
[312150718,1705669881569,-500.0,0.00023013,2]
[312150719,1705669881578,-1263.43,0.00023013,2]
[312150720,1705669881589,-970.19,0.00023013,2]
[312150721,1705669881599,-3690.4,0.00023013,2]
[312150722,1705669881610,-500.0,0.00023013,2]
[312150723,1705669881621,-790.63,0.00023013,2]
[312150724,1705669881631,-500.0,0.00023013,2]
[312150725,1705669881641,-500.0,0.00023013,2]
[312150726,1705669881651,-500.0,0.00023013,2]
[312150727,1705669881661,-702.42,0.00023013,2]
[312150728,1705669881671,-3924.47,0.00023013,2]
[312150729,1705669881681,-500.0,0.00023013,2]
[312150730,1705669881691,-973.67,0.00023013,2]
[312150731,1705669881701,-598.21,0.00023013,2]
[312150732,1705669881711,-500.0,0.00023013,2]
[312150733,1705669881721,-1520.21,0.00023013,2]
[312150734,1705669881731,-562.92,0.00023013,2]
[312150735,1705669881741,-500.0,0.00023013,2]
[312150736,1705669881751,-1299.47,0.00023013,2]
[312150737,1705669881762,-4002.65,0.00023013,2]
[312150738,1705669881772,-1988.16,0.00023013,5]
[312150739,1705669881783,-687.96,0.00023013,2]
[312150740,1705669881795,-821.93,0.00023013,2]
[312150741,1705669881808,-1689.55,0.00023013,2]
[312150742,1705669881818,-500.0,0.00023013,2]
[312150743,1705669881829,-621.19,0.00023013,2]
[312150744,1705669881839,-574.45,0.00023013,2]
[312150745,1705669881849,-2788.01,0.00023013,2]
[312150746,1705669881860,-500.0,0.00023013,2]
[312150747,1705669881869,-1406.79,0.00023013,2]
[312150748,1705669881880,-500.0,0.00023013,2]
[312150749,1705669881890,-1676.68,0.00023013,2]
[312150750,1705669881900,-500.0,0.00023013,2]
[312150751,1705669881909,-722.53,0.00023013,2]
[312150752,1705669881919,-500.0,0.00023013,2]
[312150753,1705669881929,-528.2,0.00023013,2]
[312150754,1705669881940,-1258.05,0.00023013,2]
[312150755,1705669881950,-500.0,0.00023013,2]
[312150756,1705669881960,-536.55,0.00023013,2]
[312150757,1705669881970,-591.46,0.00023013,2]
[312150758,1705669881980,-1526.19,0.00023013,2]
[312150759,1705669881990,-1185.94,0.00023013,2]
[312150760,1705669882001,-3581.47,0.00023013,2]
[312150761,1705669882011,-500.0,0.00023013,2]
[312150762,1705669882021,-12146.1,0.00023013,2]
[312150763,1705669882032,-2612.2,0.00023013,2]
[312150764,1705669882042,-1237.18,0.00023013,2]
[312150765,1705669882052,-1056.03,0.00023013,2]
[312150766,1705669882063,-858.97,0.00023013,2]
[312150767,1705669882073,-656.1,0.00023013,2]
[312150768,1705669882083,-2469.05,0.00023013,2]
[312150769,1705669882093,-500.0,0.00023013,2]
[312150770,1705669882104,-9252.78,0.00023013,2]
[312150771,1705669882115,-602.84,0.00023013,2]
[312150772,1705669882126,-500.0,0.00023013,2]
[312150773,1705669882136,-15248.18,0.00023013,2]
[312150774,1705669882147,-8551.06,0.00023013,2]
[312150775,1705669882159,-2574.37,0.00023013,2]
[312150776,1705669882169,-500.0,0.00023013,2]
[312150777,1705669882179,-767.02,0.00023013,2]
[312150778,1705669882189,-577.79,0.00023013,2]
[312150779,1705669882199,-543.58,0.00023013,2]
[312150780,1705669882210,-1439.62,0.00023013,2]
[312150781,1705669882219,-1848.98,0.00023013,2]
[312150782,1705669882229,-1228.0,0.00023013,2]
[312150783,1705669882239,-2267.31,0.00023013,2]
[312150784,1705669882250,-335.59,0.00023013,2]
[312150785,1705669882260,-574.86,0.00023013,2]
[312150786,1705669882270,-3257.42,0.00023013,2]
[312150787,1705669882280,-894.19,0.00023013,2]
[312150788,1705669882289,-500.0,0.00023013,2]
[312150789,1705669882299,-585.55,0.00023013,2]
[312150790,1705669882309,-2231.87,0.00023013,2]
[312150791,1705669882318,-5684.2,0.00023013,2]
[312150792,1705669882329,-1414.02,0.00023013,2]
[312150793,1705669882339,-939.86,0.00023013,2]
[312150794,1705669882349,-500.0,0.00023013,2]
[312150795,1705669882358,-580.2,0.00023013,2]
[312150796,1705669882367,-500.0,0.00023013,2]
[312150797,1705669882378,-2102.76,0.00023013,2]
[312150798,1705669882388,-500.0,0.00023013,2]
[312150799,1705669882397,-500.0,0.00023013,2]
[312150800,1705669882408,-4658.46,0.00023013,2]
[312150801,1705669882418,-1984.44,0.00023013,2]
[312150802,1705669882429,-3439.18,0.00023013,2]
[312150803,1705669882440,-2207.47,0.00023013,2]
[312150804,1705669882450,-1931.43,0.00023013,2]
[312150805,1705669882460,-500.0,0.00023013,2]
[312150806,1705669882470,-500.0,0.00023013,2]
[312150807,1705669882481,-639.82,0.00023013,2]
[312150808,1705669882490,-1100.23,0.00023013,2]
[312150809,1705669882500,-500.0,0.00023013,2]
[312150810,1705669882511,-644.68,0.00023013,2]
[312150811,1705669882521,-500.0,0.00023013,2]
[312150812,1705669882531,-500.0,0.00023013,2]
[312150813,1705669882541,-500.0,0.00023013,2]
[312150814,1705669882551,-500.0,0.00023013,2]
[312150815,1705669882562,-759.77,0.00023013,2]
[312150816,1705669882571,-1956.81,0.00023013,2]
[312150817,1705669882581,-500.0,0.00023013,2]
[312150818,1705669882592,-986.14,0.00023013,2]
[312150819,1705669882601,-534.94,0.00023013,2]
[312150820,1705669882612,-686.98,0.00023013,2]
[312150821,1705669882622,-549.98,0.00023013,2]
[312150822,1705669882632,-916.9,0.00023013,2]
[312150823,1705669882643,-869.67,0.00023013,2]
[312150824,1705669882653,-7071.93,0.00023013,2]
[312150825,1705669882663,-2963.64,0.00023013,2]
[312150826,1705669882673,-1215.68,0.00023013,2]
[312150827,1705669882683,-1525.76,0.00023013,2]
[312150828,1705669882693,-621.36,0.00023013,2]
[312150829,1705669882703,-500.0,0.00023013,2]
[312150830,1705669882713,-500.0,0.00023013,2]
[312150831,1705669882722,-2140.94,0.00023013,2]
[312150832,1705669882733,-710.71,0.00023013,2]
[312150833,1705669882743,-842.67,0.00023013,2]
[312150834,1705669882753,-549.3,0.00023013,2]
[312150835,1705669882763,-4445.96,0.00023013,2]
[312150836,1705669882773,-500.0,0.00023013,2]
[312150837,1705669882783,-4442.84,0.00023013,2]
[312150838,1705669882795,-3252.64,0.00023013,2]
[312150839,1705669882806,-9432.03,0.00023013,2]
[312150840,1705669882815,-1494.52,0.00023013,2]
[312150841,1705669882825,-500.0,0.00023013,2]
[312150842,1705669882836,-2305.27,0.00023013,2]
[312150843,1705669882846,-1994.22,0.00023013,2]
[312150844,1705669882855,-785.42,0.00023013,2]
[312150845,1705669882866,-544.14,0.00023013,2]
[312150846,1705669882877,-15331.08,0.00023013,2]
[312150847,1705669882888,-37740.3,0.00023013,2]
[312150848,1705669882898,-575.23,0.00023013,2]
[312150849,1705669882909,-3240.46,0.00023013,2]
[312150850,1705669882919,-500.0,0.00023013,2]
[312150851,1705669882929,-664.75,0.00023013,2]
[312150852,1705669882939,-500.0,0.00023013,2]
[312150853,1705669882949,-500.0,0.00023013,2]
[312150854,1705669882959,-500.0,0.00023013,2]
[312150855,1705669882969,-500.0,0.00023013,2]
[312150856,1705669882979,-500.0,0.00023013,2]
[312150857,1705669882990,-1196.75,0.00023013,2]
[312150858,1705669883000,-500.0,0.00023013,2]
[312150859,1705669883010,-1846.5,0.00023013,2]
[312150860,1705669883020,-665.6,0.00023013,2]
[312150861,1705669883030,-2652.58,0.00023013,2]
[312150862,1705669883040,-2233.52,0.00023013,2]
[312150863,1705669883050,-538.09,0.00023013,2]
[312150864,1705669883059,-500.0,0.00023013,2]
[312150865,1705669883069,-808.35,0.00023013,2]
[312150866,1705669883079,-1124.95,0.00023013,2]
[312150867,1705669883088,-1635.99,0.00023013,2]
[312150868,1705669883099,-573.95,0.00023013,2]
[312150869,1705669883109,-3944.13,0.00023013,2]
[312150870,1705669883118,-750.32,0.00023013,2]
[312150871,1705669883128,-1281.81,0.00023013,2]
[312150872,1705669883138,-4547.59,0.00023013,2]
[312150873,1705669883148,-500.0,0.00023013,2]
[312150874,1705669883158,-508.67904637,0.00023013,2]
[312150875,1705669883168,-8425.91,0.00023013,2]
[312150876,1705669883178,-500.0,0.00023013,2]
[312150877,1705669883188,-754.61,0.00023013,2]
[312150878,1705669883198,-506.59,0.00023013,2]
[312150879,1705669883207,-1705.42,0.00023013,2]
[312150880,1705669883217,-591.74,0.00023013,2]
[312150881,1705669883227,-780.91,0.00023013,2]
[312150882,1705669883237,-574.32,0.00023013,2]
[312150883,1705669883246,-1313.23,0.00023013,2]
[312150884,1705669883256,-500.0,0.00023013,2]
[312150885,1705669883267,-2028.69,0.00023013,2]
[312150886,1705669883277,-500.0,0.00023013,2]
[312150887,1705669883287,-633.91,0.00023013,2]
[312150888,1705669883297,-500.0,0.00023013,2]
[312150889,1705669883307,-9076.22,0.00023013,2]
[312150890,1705669883317,-924.14,0.00023013,2]
[312150891,1705669883327,-526.59,0.00023013,2]
[312150892,1705669883338,-2029.72,0.00023013,2]
[312150893,1705669883348,-500.0,0.00023013,2]
[312150894,1705669883359,-500.0,0.00023013,2]
[312150895,1705669883369,-981.27,0.00023013,2]
[312150896,1705669883379,-826.71,0.00023013,2]
[312150897,1705669883389,-1960.9,0.00023013,2]
[312150898,1705669883400,-500.0,0.00023013,2]
[312150899,1705669883409,-4783.55,0.00023013,2]
[312150900,1705669883419,-835.31,0.00023013,2]
[312150901,1705669883429,-364.56784712,0.00023013,2]
[312150902,1705669883439,-5207.41,0.00023013,2]
[312150903,1705669883449,-462.32694126,0.00023013,2]
[312150904,1705669883458,-1577.31,0.00023013,2]
[312150905,1705669883467,-500.0,0.00023013,2]
[312150906,1705669883478,-442.06,0.00023013,2]
[312150907,1705669883488,-3855.72,0.00023013,2]
[312150908,1705669883498,-500.0,0.00023013,2]
[312150909,1705669883508,-685.58,0.00023013,2]
[312150910,1705669883518,-1179.28,0.00023013,2]
[312150911,1705669883529,-793.67,0.00023013,2]
[312150912,1705669883540,-813.09,0.00023013,2]
[312150913,1705669883550,-583.17,0.00023013,2]
[312150914,1705669883560,-2276.82,0.00023013,2]
[312150915,1705669883571,-3177.97,0.00023013,2]
[312150916,1705669883581,-3710.39,0.00023013,2]
[312150917,1705669883591,-500.0,0.00023013,2]
[312150918,1705669883601,-500.0,0.00023013,2]
[312150919,1705669883612,-660.03,0.00023013,2]
[312150920,1705669883622,-550.62,0.00023013,2]
[312150921,1705669883633,-2628.92,0.00023013,2]
[312150922,1705669883643,-500.0,0.00023013,2]
[312150923,1705669883653,-638.69,0.00023013,2]
[312150924,1705669883663,-1034.13,0.00023013,2]
[312150925,1705669883673,-2000.88,0.00023013,2]
[312150926,1705669883683,-19369.32,0.00023013,2]
[312150927,1705669883693,-2148.61,0.00023013,2]
[312150928,1705669883703,-250.4473777,0.00023013,2]
[312150929,1705669883712,-500.0,0.00023013,2]
[312150930,1705669883722,-25482.51,0.00023013,2]
[312150931,1705669883732,-1717.53,0.00023013,2]
[312150932,1705669883742,-500.0,0.00023013,2]
[312150933,1705669883752,-500.0,0.00023013,2]
[312150934,1705669883761,-1264.98,0.00023013,2]
[312150935,1705669883771,-500.0,0.00023013,2]
[312150936,1705669883781,-500.0,0.00023013,2]
[312150937,1705669883792,-746.64,0.00023013,2]
[312150938,1705669883802,-1739.34,0.00023013,2]
[312150939,1705669883812,-500.0,0.00023013,2]
[312150940,1705669883822,-1153.95,0.00023013,2]
[312150941,1705669883832,-1444.66,0.00023013,2]
[312150942,1705669883843,-4305.99,0.00023013,2]
[312150943,1705669883852,-721.93,0.00023013,2]
[312150944,1705669883863,-1568.86,0.00023013,2]
[312150945,1705669883873,-1301.31,0.00023013,2]
[312150946,1705669883883,-500.0,0.00023013,2]
[312150947,1705669883893,-1193.88,0.00023013,2]
[312150948,1705669883904,-855.93,0.00023013,2]
[312150949,1705669883914,-1184.09,0.00023013,2]
[312150950,1705669883924,-238.79216353,0.00023013,2]
[312150951,1705669883934,-1441.39,0.00023013,2]
[312150952,1705669883944,-2315.09,0.00023013,2]
[312150953,1705669883954,-2117.61,0.00023013,2]
[312150954,1705669883964,-980.44,0.00023013,2]
[312150955,1705669883974,-2124.5,0.00023013,2]
[312150956,1705669883984,-3846.66,0.00023013,2]
[312150957,1705669883994,-1637.31,0.00023013,2]
[312150958,1705669884004,-513.8,0.00023013,2]
[312150959,1705669884014,-757.52,0.00023013,2]
[312150960,1705669884024,-500.0,0.00023013,2]
[312150961,1705669884035,-500.0,0.00023013,2]
[312150962,1705669884045,-883.7,0.00023013,2]
[312150963,1705669884056,-1482.25,0.00023013,2]
[312150964,1705669884067,-2977.49,0.00023013,2]
[312150965,1705669884077,-2766.49,0.00023013,2]
[312150966,1705669884088,-1781.63,0.00023013,2]
[312150967,1705669884098,-500.0,0.00023013,2]
[312150968,1705669884110,-521.28749575,0.00023013,2]
[312150969,1705669884121,-660.55,0.00023013,2]
[312150970,1705669884131,-661.91,0.00023013,2]
[312150971,1705669884142,-537.32,0.00023013,2]
[312150972,1705669884152,-567.18,0.00023013,2]
[312150973,1705669884162,-500.0,0.00023013,2]
[312150974,1705669884173,-500.0,0.00023013,2]
[312150975,1705669884184,-761.41,0.00023013,2]
[312150976,1705669884194,-857.58,0.00023013,2]
[312150977,1705669884204,-1153.39,0.00023013,2]
[312150978,1705669884214,-649.92,0.00023013,2]
[312150979,1705669884223,-2418.64,0.00023013,2]
[312150980,1705669884233,-1464.05,0.00023013,2]
[312150981,1705669884243,-8804.12,0.00023013,2]
[312150982,1705669884254,-4399.62,0.00023013,2]
[312150983,1705669884264,-664.67,0.00023013,2]
[312150984,1705669884275,-904.22,0.00023013,2]
[312150985,1705669884285,-500.0,0.00023013,2]
[312150986,1705669884295,-2042.08,0.00023013,2]
[312150987,1705669884305,-1340.55,0.00023013,2]
[312150988,1705669884315,-4233.95,0.00023013,2]
[312150989,1705669884325,-1033.87,0.00023013,2]
[312150990,1705669884335,-1827.3,0.00023013,2]
[312150991,1705669884347,-500.0,0.00023013,2]
[312150992,1705669884357,-1837.39,0.00023013,2]
[312150993,1705669884368,-760.36,0.00023013,2]
[312150994,1705669884379,-1378.23,0.00023013,2]
[312150995,1705669884389,-519.06955788,0.00023013,2]
[312150996,1705669884399,-500.0,0.00023013,2]
[312150997,1705669884409,-2761.46,0.00023013,2]
[312150998,1705669884420,-938.71,0.00023013,2]
[312150999,1705669884431,-1397.44,0.00023013,2]
[312151000,1705669884441,-1091.57,0.00023013,2]
[312151001,1705669884451,-500.0,0.00023013,2]
[312151002,1705669884461,-500.0,0.00023013,2]
[312151003,1705669884472,-2230.55,0.00023013,2]
[312151004,1705669884482,-2441.81,0.00023013,2]
[312151005,1705669884492,-500.0,0.00023013,2]
[312151006,1705669884502,-500.0,0.00023013,2]
[312151007,1705669884512,-4496.97,0.00023013,2]
[312151008,1705669884522,-500.0,0.00023013,2]
[312151009,1705669884533,-915.54,0.00023013,2]
[312151010,1705669884543,-1052.49,0.00023013,2]
[312151011,1705669884554,-500.0,0.00023013,2]
[312151012,1705669884565,-999.66,0.00023013,2]
[312151013,1705669884575,-1236.9,0.00023013,2]
[312151014,1705669884585,-1813.55,0.00023013,2]
[312151015,1705669884595,-7568.94,0.00023013,2]
[312151016,1705669884606,-1397.72,0.00023013,2]
[312151017,1705669884617,-715.61,0.00023013,2]
[312151018,1705669884627,-500.0,0.00023013,2]
[312151019,1705669884638,-500.0,0.00023013,2]
[312151020,1705669884649,-1145.22,0.00023013,2]
[312151021,1705669884659,-735.86,0.00023013,2]
[312151022,1705669884670,-500.0,0.00023013,2]
[312151023,1705669884680,-3637.81230197,0.00023026,2]